[Event "45th FIDE Olympiad 2024"]
[Site "Budapest"]
[Date "2024.09.13"]
[Round "3.22"]
[White "Van Foreest, Jorden"]
[Black "Moroni, Luca Jr"]
[Result "1-0"]
[ECO "B12"]
[WhiteElo "2696"]
[BlackElo "2558"]
[Annotator "TA"]
[PlyCount "57"]
[EventDate "2024.09.05"]
[EventType "team-tourn"]
[EventCountry "HUN"]
[SourceTitle "playchess.com"]
[Source "ChessBase"]
[SourceQuality "1"]
[WhiteTeam "Netherlands"]
[BlackTeam "Italy"]
[WhiteTeamCountry "NED"]
[BlackTeamCountry "ITA"]
[TimeControl "40/5400+30:1800+30"]

{[%evp 10,57,30,19,47,12,31,28,20,20,35,41,39,35,29,30,50,50,127,111,168,178,174,167,188,136,273,259,337,312,358,353,357,351,381,384,407,404,460,457,795,783,720,351,841,812,1470,1429,1407,1385]} 1. e4 {[%emt 0:00:04]} c6 {[%emt 0:00:04]} 2. d4 {[%emt 0:00:28]} d5 {[%emt 0:00:05]} 3. e5 {[%emt 0:00:12]} Bf5 {[%emt 0:00:17]} 4. Nf3 {[%emt 0:00:42][%cal Bg1f3,Bf3e1,Be1d3,Bd3f4][%mdl 32]} e6 {[%emt 0:00:20]} 5. Be2 {[%emt 0:00:08]} Nd7 {[%emt 0:01:44]} 6. O-O {[%emt 0:00:11]} a5 {[%emt 0:00:04]} 7. Ne1 {[%emt 0:00:07]} Ne7 {[%emt 0:05:20]} 8. c3 {[%emt 0:00:21]} a4 {[%emt 0:02:33] White has an edge.} 9. Na3 {[%emt 0:00:38]} Bg6 {[%emt 0:02:44]} 10. Nd3 {[%emt 0:07:32]} Nf5 {[%emt 0:11:52]} 11. Nc2 {[%emt 0:05:45]} Be7 {[%emt 0:04:07]} 12. Nf4 {[%emt 0:09:55]} b5 {[%emt 0:05:35]} 13. g3 {[%emt 0:01:35]} Qb6 {[%emt 0:06:28] [#]} (13... Bg5 $14) 14. h4 $1 $16 {[%emt 0:00:58][%cal Bh2h4,Bh4h5][%mdl 32]} h6 {[%emt 0:01:54]} (14... h5 $16 {was worth a try.} 15. a3 (15. Bxh5 Bxh5 16. Nxh5 O-O-O $16) (15. Nxh5 c5 $16) 15... c5) 15. Nxg6 $18 {[%emt 0:00:52]} fxg6 {[%emt 0:00:05] [#]} 16. h5 $1 {[%emt 0:00:08]} g5 {[%emt 0:03:19]} 17. Ne3 {[%emt 0:02:41]} ({White should play} 17. Bg4 $18) 17... O-O-O {[%emt 0:09:42] Loses the game.} (17... c5 $16 18. Bd3 cxd4 19. Nxf5 exf5) 18. Bg4 {[%emt 0:01:22]} Rdf8 {[%emt 0:01:33]} 19. Qd3 {[%emt 0:00:52]} g6 {[%emt 0:01:15]} 20. b3 {[%emt 0:01:11]} (20. hxg6 Ng7 21. b3 Qa5 $18) 20... a3 {[%emt 0:03:28]} 21. Bd2 {[%emt 0:03:48]} Kb8 {[%emt 0:02:49]} 22. Rac1 {[%emt 0:04:06]} Rhg8 {[%emt 0:08:51]} 23. hxg6 {[%emt 0:00:29]} Ng7 {[%emt 0:00:11]} 24. c4 {[%emt 0:00:05] Threatens to win with cxd5.} h5 {[%emt 0:00:44]} (24... Qb7 $142 25. cxd5 cxd5) 25. cxd5 {[%emt 0:05:22]} hxg4 {[%emt 0:00:21]} 26. dxc6 {[%emt 0:00:34]} (26. Rxc6 $142 Qb7 27. Rfc1 (27. Nxg4 exd5 28. Rfc1 Rc8 $18)) 26... Rh8 $2 {[%emt 0:01:49]} (26... Nc5 27. c7+ (27. dxc5 Qxc6 28. Nxg4 Rd8 $16) (27. Rxc5 Bxc5 28. dxc5 Qxc6 $18) 27... Qxc7 28. Qxb5+ (28. dxc5 Qc6 $16) 28... Qb7 29. Rxc5 Bxc5 30. Qxc5 Rd8) 27. Qe4 {[%emt 0:00:09] White is clearly winning.} Nf5 {[%emt 0:00:48]} 28. Nxf5 {[%emt 0:00:53]} (28. Qxg4 Nxd4 29. cxd7 Nf3+ $18) 28... exf5 {[%emt 0:00:03]} 29. Qd5 {[%emt 0:00:06] Weighted Error Value: White=0.38/Black=0.40.  Mistake:       	White=1     	Black=4      Inaccurate:     	White=1     	Black=2      OK:         	White=9     	Black=5      Best:        	White=2     	---        Strong:       	White=1     	---} 1-0

[Event "45th FIDE Olympiad 2024"]
[Site "Budapest"]
[Date "2024.09.13"]
[Round "3.22"]
[White "Kyaw, Zay Ya"]
[Black "Krieger, Markus"]
[Result "0-1"]
[ECO "C45"]
[WhiteElo "1818"]
[BlackElo "2153"]
[Annotator "RC"]
[PlyCount "58"]
[EventDate "2024.09.05"]
[EventType "team-tourn"]
[EventCountry "HUN"]
[SourceTitle "playchess.com"]
[Source "ChessBase"]
[SourceQuality "1"]
[WhiteTeam "Myanmar"]
[BlackTeam "Liechtenstein"]
[WhiteTeamCountry "MYA"]
[BlackTeamCountry "LIE"]
[TimeControl "40/5400+30:1800+30"]

1. e4 e5 2. Nf3 Nc6 3. d4 exd4 4. Nxd4 Nf6 5. Nxc6 bxc6 6. Bd3 d5 7. e5 Ng4 8. Bf4 Bc5 9. Bg3 O-O 10. h3 Nxe5 11. Be2 Re8 12. O-O Bf5 13. Nc3 Rb8 14. Na4 Bd6 15. c3 Ng6 16. b4 Qg5 17. Kh2 Re7 18. Bh5 Rbe8 19. Nc5 Nf4 20. Bf3 Ne2 21. Bxe2 Rxe2 22. Qd4 h5 23. h4 Qg6 24. a4 R8e3 25. Bf4 Re4 26. Nxe4 Rxe4 27. Bxd6 Rxd4 28. cxd4 Qxd6+ 29. Kg1 Qxb4 0-1

[Event "45th FIDE Olympiad 2024"]
[Site "Budapest"]
[Date "2024.09.13"]
[Round "3.23"]
[White "Sonis, Francesco"]
[Black "Warmerdam, Max"]
[Result "1-0"]
[ECO "E67"]
[WhiteElo "2554"]
[BlackElo "2679"]
[Annotator "TA"]
[PlyCount "65"]
[EventDate "2024.09.05"]
[EventType "team-tourn"]
[EventCountry "HUN"]
[SourceTitle "playchess.com"]
[Source "ChessBase"]
[SourceQuality "1"]
[WhiteTeam "Italy"]
[BlackTeam "Netherlands"]
[WhiteTeamCountry "ITA"]
[BlackTeamCountry "NED"]
[TimeControl "40/5400+30:1800+30"]

{[%evp 16,65,46,19,44,29,32,34,49,22,13,5,23,0,22,25,31,9,25,25,37,-61,-73,-118,-112,-116,-119,-94,-151,-139,-137,-149,-140,-150,0,0,0,-8,145,136,231,214,500,510,497,496,514,504,496,509,508,500]} 1. c4 {[%emt 0:00:02]} Nf6 {[%emt 0:00:08]} 2. Nc3 {[%emt 0:00:05]} g6 {[%emt 0:00:06]} 3. g3 {[%emt 0:00:09]} Bg7 {[%emt 0:00:06]} 4. Bg2 {[%emt 0:00:04]} O-O {[%emt 0:00:08]} 5. d4 {[%emt 0:00:10]} d6 {[%emt 0:00:06]} 6. Nf3 {[%emt 0:00:11]} Nbd7 {[%emt 0:00:07]} 7. O-O {[%emt 0:00:27]} e5 {[%emt 0:00:05]} 8. e4 {[%emt 0:01:53]} Re8 {[%emt 0:00:15]} 9. h3 {[%emt 0:00:44]} b6 {[%emt 0:00:23]} 10. Qc2 {[%emt 0:12:40]} exd4 {[%emt 0:00:42]} 11. Nxd4 {[%emt 0:00:07]} Bb7 {[%emt 0:00:05][%cal Of6e4] Repels Nc6. White is slightly better.} 12. Rd1 {[%emt 0:00:20]} Nc5 {[%emt 0:02:58]} 13. f3 {[%emt 0:03:22]} Qe7 {[%emt 0:00:43]} 14. Nb3 {[%emt 0:29:37]} c6 {[%emt 0:23:47][%cal Od6d5]} 15. Nxc5 {[%emt 0:10:32]} bxc5 {[%emt 0:01:30]} 16. Be3 {[%emt 0:13:10]} d5 {[%emt 0:05:27] Threatens to win with ...d4.} 17. Na4 {[%emt 0:00:19]} Nd7 {[%emt 0:05:20]} 18. cxd5 {[%emt 0:07:26]} ({White should play} 18. Bf2 $14) 18... cxd5 $15 {[%emt 0:00:54]} 19. Bxc5 {[%emt 0:02:27]} (19. Nxc5 $2 Rac8 (19... d4 20. Nxb7 dxe3 21. Nd6 $11) 20. Rac1 d4 21. Rxd4 Rxc5 $19 (21... Nxc5 $2 22. Rc4 $19)) 19... Rac8 $1 {[%emt 0:30:37]} 20. Bxe7 {[%emt 0:04:22]} Rxc2 {[%emt 0:00:05]} 21. Bg5 {[%emt 0:00:02]} Bc6 {[%emt 0:09:29][%cal Rd5e4]} (21... Bxb2 $2 22. Rab1 (22. Nxb2 Rxb2 23. Rac1 Rc8 $16) 22... Bf6 23. Rxb7 $18) 22. Nc3 {[%emt 0:00:56]} d4 {[%emt 0:00:04]} (22... Rxb2 23. Nxd5 (23. exd5 Bb7 $11) 23... Bxd5 24. exd5 $17) 23. Nd5 {[%emt 0:04:59]} Bxd5 {[%emt 0:00:47]} (23... Rxb2 24. Ne7+ Rxe7 25. Bxe7 $14) 24. exd5 {[%emt 0:00:05][%cal Be4d5,Bd5d6,Bd6d7][%mdl 32]} Ree2 {[%emt 0:00:33] Against Rd2} (24... Rxb2 25. Rab1 Rxa2 26. d6 $11) (24... h6 $1 $17 {[%cal Rh6g5]} 25. Bf4 g5 (25... Rxb2 26. Rab1 $15)) 25. Bf1 $11 {[%emt 0:00:19]} Rh2 {[%emt 0:00:24][%cal Od7e5] ...Ne5! is the strong threat.} 26. Rd3 $1 {[%emt 0:03:58]} Ne5 $2 {[%emt 0:06:46] [#]} (26... h6 $11 27. Be7 Ne5 (27... Rxb2 28. f4 $11)) 27. d6 $1 $16 {[%emt 0:02:06][%cal Of3f4]} f6 {[%emt 0:07:22] [#]} (27... Nxd3 $2 28. d7 h5 (28... Bf6 29. Bxf6) 29. d8=Q+ $18 (29. d8=R+ Kh7 $19)) (27... h6 $16 28. f4 Nd7 (28... Nxd3 29. d7 $18)) 28. Bf4 $1 $18 {[%emt 0:00:26] aiming for Bxe5.} ({Stronger than} 28. d7 Nxd7 29. Bf4 Ne5 (29... Rxb2 30. Rxd4 Ne5 31. Bxe5 $11) 30. Bxe5 fxe5 $17) 28... g5 $2 {[%emt 0:00:57]} ({Avoid the trap} 28... Nxd3 $2 29. d7 h5 30. d8=Q+ $18 (30. d8=R+ Kf7 $16)) (28... Kf7 {keeps fighting.}) 29. Bxe5 {[%emt 0:00:11] White is clearly winning.} fxe5 {[%emt 0:00:01]} 30. d7 {[%emt 0:00:11]} Bf6 {[%emt 0:00:38]} 31. Re1 {[%emt 0:01:08]} Rxb2 {[%emt 0:03:24] [#]} 32. Rxe5 $3 {[%emt 0:00:11][%mdl 512]} Rhc2 {[%emt 0:00:16]} 33. Re6 {[%emt 0:01:51] Weighted Error Value: White=0.12 (very precise) /Black=0.44.  Mistake:       	White=1     	Black=4      Inaccurate:     	White=2     	---        OK:         	White=8     	Black=13     Best:        	White=3     	---        Strong:       	White=3     	Black=1} 1-0

[Event "45th FIDE Olympiad 2024"]
[Site "Budapest"]
[Date "2024.09.13"]
[Round "3.23"]
[White "Heron, Andrew"]
[Black "Zaw, Ye Htut"]
[Result "0-1"]
[ECO "B01"]
[WhiteElo "2026"]
[BlackElo "1815"]
[Annotator "NA RC"]
[PlyCount "82"]
[EventDate "2024.09.05"]
[EventType "team-tourn"]
[EventCountry "HUN"]
[SourceTitle "playchess.com"]
[Source "ChessBase"]
[SourceQuality "1"]
[WhiteTeam "Liechtenstein"]
[BlackTeam "Myanmar"]
[WhiteTeamCountry "LIE"]
[BlackTeamCountry "MYA"]
[TimeControl "40/5400+30:1800+30"]

1. e4 d5 2. exd5 Qxd5 3. h3 Nf6 4. Nf3 Nc6 5. Nc3 Qh5 6. Be2 Bg4 7. Rg1 Bxf3 8. Bxf3 Qe5+ 9. Qe2 Qxe2+ 10. Nxe2 Nb4 11. Kd1 O-O-O 12. g4 h6 13. d3 Nxd3 14. cxd3 Rxd3+ 15. Ke1 Rxf3 16. Ng3 Rd3 17. Be3 e6 18. Ke2 Rd7 19. Rac1 Nd5 20. Rc4 Nxe3 21. fxe3 Bd6 22. Ne4 Be5 23. b4 Rhd8 24. Rf1 g6 25. Rc2 f5 26. Nc5 Rd6 27. b5 a6 28. a4 axb5 29. axb5 Rb6 30. Ra2 Kb8 31. Rb1 Rd5 32. Rd1 Rxd1 33. Kxd1 Rxb5 34. Nd7+ Kc8 35. Nf8 b6 36. Nxg6 Kb7 37. Nf8 Bf6 38. Nxe6 fxg4 39. Rc2 gxh3 40. Rxc7+ Kb8 41. Rc2 h2 0-1

[Event "45th FIDE Olympiad 2024"]
[Site "Budapest"]
[Date "2024.09.13"]
[Round "3.24"]
[White "L'ami, Erwin"]
[Black "Brunello, Sabino"]
[Result "0-1"]
[ECO "D87"]
[WhiteElo "2628"]
[BlackElo "2511"]
[Annotator "TA"]
[PlyCount "74"]
[EventDate "2024.09.05"]
[EventType "team-tourn"]
[EventCountry "HUN"]
[SourceTitle "playchess.com"]
[Source "ChessBase"]
[SourceQuality "1"]
[WhiteTeam "Netherlands"]
[BlackTeam "Italy"]
[WhiteTeamCountry "NED"]
[BlackTeamCountry "ITA"]
[TimeControl "40/5400+30:1800+30"]

{[%evp 29,74,17,20,27,19,33,50,13,16,18,17,20,15,21,9,14,31,31,29,31,53,53,21,0,0,0,0,-8,8,31,19,-30,-22,-37,0,0,4,-127,-157,-252,-265,-260,-257,-233,-257,-564,-554]} 1. d4 {[%emt 0:00:03]} Nf6 {[%emt 0:00:05]} 2. c4 {[%emt 0:00:11]} g6 {[%emt 0:00:03]} 3. Nc3 {[%emt 0:00:43]} d5 {[%emt 0:00:06]} 4. cxd5 {[%emt 0:00:26]} Nxd5 {[%emt 0:00:06]} 5. e4 {[%emt 0:00:09]} Nxc3 {[%emt 0:00:04]} 6. bxc3 {[%emt 0:00:09]} Bg7 {[%emt 0:00:02]} 7. Bc4 {[%emt 0:01:18]} c5 {[%emt 0:01:50]} 8. Ne2 {[%emt 0:00:11]} Nc6 {[%emt 0:00:43][%cal Bb8c6,Bc6a5,Ba5c4][%mdl 32]} 9. Be3 {[%emt 0:00:22]} O-O {[%emt 0:00:09]} 10. O-O {[%emt 0:00:29]} Bg4 {[%emt 0:00:13]} 11. f3 {[%emt 0:00:56]} Na5 {[%emt 0:00:18]} 12. Bxf7+ {[%emt 0:02:36]} Rxf7 {[%emt 0:00:02]} 13. fxg4 {[%emt 0:00:12]} Rxf1+ {[%emt 0:00:02]} 14. Kxf1 {[%emt 0:00:10]} Qd6 {[%emt 0:00:26]} 15. e5 {[%emt 0:03:23]} Qd5 {[%emt 0:05:06]} 16. Kg1 {[%emt 0:13:14]} Nc4 {[%emt 0:25:01]} 17. Bf2 {[%emt 0:06:35]} (17. dxc5 $2 Qxd1+ (17... Nxe3 $2 18. Qxd5+ Nxd5 19. Rd1 $19) (17... Qxe5 18. Bd4 $14) 18. Rxd1 Nxe3 $19) 17... Rf8 {[%emt 0:07:27]} 18. g5 {[%emt 0:10:40] Dodges Bh6. White is slightly better.} Qf7 $1 {[%emt 0:11:34] Prevents g3.} 19. Qe1 {[%emt 0:04:16]} Na3 $1 {[%emt 0:05:19]} 20. Rc1 {[%emt 0:05:39] Inhibits Nc2.} (20. dxc5 $2 Nc2 (20... Bxe5 21. Nd4 $11) 21. e6 Qxe6 $19 (21... Qxf2+ $2 22. Qxf2 Rxf2 23. Kxf2 $19)) 20... Qxa2 {[%emt 0:02:02]} 21. g3 {[%emt 0:05:55]} Qc4 {[%emt 0:12:00]} 22. Nf4 {[%emt 0:03:40]} Nb5 {[%emt 0:00:25]} 23. Qf1 {[%emt 0:14:13]} Qxf1+ {[%emt 0:03:29]} 24. Kxf1 {[%emt 0:00:18]} Rc8 {[%emt 0:20:19]} 25. Nd5 {[%emt 0:09:30]} Kf7 {[%emt 0:00:43]} 26. Rb1 {[%emt 0:01:53]} Nc7 {[%emt 0:00:47]} 27. Nf4 {[%emt 0:01:36]} b5 {[%emt 0:03:03]} 28. Ke2 {[%emt 0:03:01]} c4 {[%emt 0:00:22] [#]} 29. e6+ $1 {[%emt 0:03:52]} Ke8 {[%emt 0:00:04]} 30. Kf3 {[%emt 0:02:24]} (30. Ra1 {deserves consideration.} a6 31. g4) 30... a5 $11 {[%emt 0:00:36]} 31. Ke4 {[%emt 0:00:33]} b4 {[%emt 0:00:23]} 32. cxb4 {[%emt 0:00:34]} Nb5 $36 {[%emt 0:00:09][%mdl 2048] Black is pushing.} 33. Be1 {[%emt 0:04:25] Prevents Nc3+} (33. bxa5 $2 Nc3+ 34. Ke3 Nxb1 $19) (33. Nd5 $11 a4 34. Rc1) 33... a4 $17 {[%emt 0:00:41][%mdl 1024] Black has strong compensation.} 34. Ra1 {[%emt 0:02:15]} (34. Rd1 $17) 34... a3 $19 {[%emt 0:00:49]} (34... Nxd4 35. Rxa4 (35. Bc3 Nxe6 36. Bxg7 Nxg7 $11) 35... Nb5 36. Ne2 $16 (36. Ra5 Nd6+ 37. Kd5 c3 $11)) 35. Ne2 {[%emt 0:00:36]} Rd8 {[%emt 0:00:21]} ({Stronger than} 35... c3 36. Kd3 $11) 36. Bf2 {[%emt 0:01:18]} Rd6 {[%emt 0:00:17]} 37. Nc1 $2 {[%emt 0:00:23] [#]} (37. Kf3) 37... Bxd4 {[%emt 0:01:29] Weighted Error Value: White=0.31/Black=0.03 (flawless) .  Mistake:       	White=4     	---        Inaccurate:     	White=1     	Black=1      OK:         	White=9     	Black=13     Best:        	---       	Black=4      Strong:       	---       	Black=2} 0-1

[Event "45th FIDE Olympiad 2024"]
[Site "Budapest"]
[Date "2024.09.13"]
[Round "3.24"]
[White "Linn, Phone Myat"]
[Black "Frick, Renato"]
[Result "1-0"]
[ECO "C54"]
[WhiteElo "1763"]
[BlackElo "1925"]
[Annotator "NA RC"]
[PlyCount "77"]
[EventDate "2024.09.05"]
[EventType "team-tourn"]
[EventCountry "HUN"]
[SourceTitle "playchess.com"]
[Source "ChessBase"]
[SourceQuality "1"]
[WhiteTeam "Myanmar"]
[BlackTeam "Liechtenstein"]
[WhiteTeamCountry "MYA"]
[BlackTeamCountry "LIE"]
[TimeControl "40/5400+30:1800+30"]

1. e4 e5 2. Nf3 Nc6 3. Bc4 Bc5 4. c3 Nf6 5. d4 exd4 6. e5 d5 7. Bb5 Ne4 8. cxd4 Bb4+ 9. Nbd2 O-O 10. h3 Bd7 11. Bd3 Ng5 12. O-O Bxd2 13. Bxd2 Nxf3+ 14. Qxf3 Nxd4 15. Qxd5 Bxh3 16. Qe4 Bf5 17. Qe3 Bxd3 18. Qxd3 Ne6 19. Qe2 Qh4 20. Rac1 Rfd8 21. f4 c5 22. Rc3 Nd4 23. Qe4 Qg4 24. Rh3 g6 25. Be3 b6 26. Bxd4 cxd4 27. Rd3 Rac8 28. Rxd4 Rxd4 29. Qxd4 h5 30. Rd1 Rc2 31. Rd2 Rc1+ 32. Kf2 Qh4+ 33. Ke2 Qe1+ 34. Kf3 h4 35. Qf2 Qh1 36. Kg4 Rc4 37. e6 fxe6 38. Qe2 Rc6 39. Qe4 1-0

[Event "45th FIDE Olympiad 2024"]
[Site "Budapest"]
[Date "2024.09.13"]
[Round "3.25"]
[White "Stremavicius, Titas"]
[Black "Keymer, Vincent"]
[Result "1-0"]
[ECO "E10"]
[WhiteElo "2527"]
[BlackElo "2730"]
[Annotator "TA"]
[PlyCount "69"]
[EventDate "2024.09.05"]
[EventType "team-tourn"]
[EventCountry "HUN"]
[SourceTitle "playchess.com"]
[Source "ChessBase"]
[SourceQuality "1"]
[WhiteTeam "Lithuania"]
[BlackTeam "Germany"]
[WhiteTeamCountry "LTU"]
[BlackTeamCountry "GER"]
[TimeControl "40/5400+30:1800+30"]

{[%evp 9,69,17,20,15,15,11,21,15,23,14,22,29,16,20,45,39,33,53,34,53,52,45,54,42,45,27,18,20,52,46,47,79,95,78,76,46,91,89,96,62,56,60,54,52,51,55,55,48,54,47,47,17,153,151,251,266,430,343,29982,29983,29998,29999]} 1. d4 {[%emt 0:00:03]} Nf6 {[%emt 0:00:05]} 2. c4 {[%emt 0:00:09]} e6 {[%emt 0:00:04]} 3. Nf3 {[%emt 0:00:07]} h6 {[%emt 0:01:45]} 4. g3 {[%emt 0:02:17]} Bb4+ {[%emt 0:01:50]} 5. Bd2 {[%emt 0:01:58]} Be7 {[%emt 0:01:15]} 6. Bg2 {[%emt 0:01:23]} d5 {[%emt 0:01:44]} 7. Qc2 {[%emt 0:01:19]} O-O {[%emt 0:02:15]} 8. O-O {[%emt 0:00:10] The position is equal.} c6 {[%emt 0:01:01]} 9. Rd1 {[%emt 0:00:46]} Nbd7 {[%emt 0:01:16]} 10. Bf4 {[%emt 0:00:32]} a5 {[%emt 0:04:06]} 11. Nc3 {[%emt 0:00:38]} b6 {[%emt 0:08:32]} 12. Ne5 {[%emt 0:01:33]} Nxe5 {[%emt 0:00:28]} 13. dxe5 {[%emt 0:00:04]} Nd7 {[%emt 0:00:04]} 14. cxd5 {[%emt 0:00:25]} cxd5 {[%emt 0:00:06]} (14... exd5 $2 15. e4 d4 16. Rxd4 $16) 15. e4 $1 $36 {[%emt 0:00:09][%mdl 2048] White is more active.} d4 {[%emt 0:00:05]} 16. Rxd4 {[%emt 0:00:06]} g5 $1 {[%emt 0:05:25]} 17. Be3 {[%emt 0:00:47]} Bc5 {[%emt 0:02:56] [#]} 18. Qe2 $1 {[%emt 0:00:28]} Qe8 {[%emt 0:09:23][%cal Od7e5]} (18... Qe7 19. Rd2) 19. Rd2 {[%emt 0:16:47] aiming for Bxc5.} Ba6 {[%emt 0:07:57]} 20. Qd1 {[%emt 0:13:10]} Nxe5 {[%emt 0:05:55][%cal Bd7e5,Be5c4,Bc4e3,Be3g2][%mdl 32]} 21. Bxc5 {[%emt 0:04:50]} bxc5 {[%emt 0:00:02]} 22. f4 {[%emt 0:00:26]} Nc4 {[%emt 0:02:05]} 23. Rf2 {[%emt 0:01:02] Threatens to win with Qe1.} Ne3 {[%emt 0:10:56]} 24. Qf3 {[%emt 0:16:07]} (24. Qc1 {feels hotter.} Nxg2 25. fxg5 Qd8 26. gxh6 Nh4 27. gxh4 Qxh4 28. Qe3) 24... Nxg2 {[%emt 0:03:23]} 25. fxg5 {[%emt 0:00:07]} (25. Qxg2 {simplifies} Qe7 26. Re1 Rad8 27. fxg5 Qxg5 28. e5) 25... hxg5 {[%emt 0:02:16][%cal Of7f6]} 26. e5 {[%emt 0:11:30]} Rb8 {[%emt 0:21:27]} 27. Ne4 {[%emt 0:12:46] And now Nf6+ would win.} (27. Rxg2 Bb7 28. Qh5 Bxg2 (28... f6 29. Qxe8 Rfxe8 30. Rd2 $11) 29. Qxg5+ Kh7 30. Qh5+ Kg7 31. Qg4+ Kh6 32. Qh4+ Kg6 33. Qg4+ Kh6 34. Qh4+ Kg7 35. Qg4+ Kh8 36. Qh4+ Kg7 37. Qg4+ $11) 27... f5 $1 {[%emt 0:00:02]} 28. exf6 {[%emt 0:00:16][%cal Oe4g5] Strongly threatening Nxg5!} (28. Nxc5 Bc4 29. Qxg2 Qb5 $15) 28... Bb7 $1 {[%emt 0:00:12][%cal Oe8g6]} 29. Rxg2 {[%emt 0:05:22]} (29. Kxg2 Qg6 30. Re1 Bd5 $11) 29... Qg6 {[%emt 0:00:29] Black is weak on the dark squares} 30. Re2 {[%emt 0:00:20]} c4 {[%emt 0:06:58]} (30... Bd5 $11) 31. Rf1 $16 {[%emt 0:04:38] Black must now prevent Qg4.} Bxe4 {[%emt 0:01:24]} (31... e5 $16 {was necessary.} 32. Qc3 Bxe4 33. Qxc4+ (33. Qxa5 $2 c3 $19) 33... Kh7 34. Qxe4 (34. Rxe4 Rb4 $11) 34... Qxe4 35. Rxe4 Rxb2) 32. Rxe4 $18 {[%emt 0:01:52]} ({Less strong is} 32. Qxe4 Qxe4 33. Rxe4 Rxb2 $14) 32... Rxb2 $2 {[%emt 0:00:06]} (32... c3) 33. Rxe6 {[%emt 0:00:37][%cal Of6f7] Threatening mate with f7+!} ({Not} 33. Rxc4 Rb1 $14) 33... Qh7 {[%emt 0:00:53] [#]} (33... Kh8 $18 34. Qa3 Rb4) 34. f7+ $1 {[%emt 0:00:54][%mdl 512]} Kh8 {[%emt 0:00:22]} (34... Qxf7 35. Rg6+) 35. Qc3+ {[%emt 0:00:04] Weighted Error Value: White=0.09 (flawless) /Black=0.36.  Mistake:       	---       	Black=4      Inaccurate:     	White=2     	Black=2      OK:         	White=14    	Black=9      Best:        	White=2     	Black=2      Strong:       	White=1     	Black=3      Brilliant:      	White=1     	---} 1-0

[Event "45th FIDE Olympiad 2024"]
[Site "Budapest"]
[Date "2024.09.13"]
[Round "3.25"]
[White "Wu, Li"]
[Black "Mathurin, Nathaniel"]
[Result "1-0"]
[ECO "D36"]
[WhiteElo "2325"]
[BlackElo "1982"]
[Annotator "RC"]
[PlyCount "97"]
[EventDate "2024.09.05"]
[EventType "team-tourn"]
[EventCountry "HUN"]
[SourceTitle "playchess.com"]
[Source "ChessBase"]
[SourceQuality "1"]
[WhiteTeam "Isle of Man"]
[BlackTeam "Saint Lucia"]
[WhiteTeamCountry "IOM"]
[TimeControl "40/5400+30:1800+30"]

1. d4 Nf6 2. Nf3 d5 3. c4 e6 4. cxd5 exd5 5. Nc3 Be7 6. Bg5 c6 7. Qc2 Nbd7 8. e3 O-O 9. Bd3 Re8 10. O-O Nf8 11. h3 h6 12. Bf4 Bd6 13. Ne5 Ne6 14. Bg3 c5 15. Nb5 Bf8 16. dxc5 Bxc5 17. Bh4 a6 18. Bh7+ Kf8 19. Nd4 Bxd4 20. exd4 Nxd4 21. Qd2 Rxe5 22. Qxd4 Re6 23. Rad1 Qb6 24. Bb1 Qxd4 25. Rxd4 g5 26. Bg3 Bd7 27. Bf5 Re7 28. Bd3 Kg7 29. f4 Rae8 30. fxg5 hxg5 31. Bf2 Bc6 32. Rb4 Nd7 33. Rg4 f6 34. Bd4 Ne5 35. Rg3 Rh8 36. Bc2 Rh4 37. Rd1 Kh6 38. b3 Rf4 39. Be3 Rh4 40. Rf1 Nd7 41. Rxf6+ Nxf6 42. Bxg5+ Kh5 43. Bxf6 Re1+ 44. Kh2 Rhe4 45. Bxe4 dxe4 46. Bd4 Re2 47. Be3 Rxa2 48. Rg5+ Kh4 49. Rf5 1-0